[Event "ECo-C Extraliga 2023-24"]
[Site "Slovakia"]
[Date "2024.02.25"]
[Round "8.4"]
[White "Babula, Vlastimil"]
[Black "Borhy, Marcell"]
[Result "1-0"]
[ECO "B90"]
[WhiteElo "2535"]
[BlackElo "2385"]
[Annotator "TA"]
[PlyCount "115"]
[EventDate "2023.10.06"]
[EventType "team-tourn"]
[EventCountry "SVK"]
[SourceTitle "playchess.com"]
[Source "ChessBase"]
[SourceQuality "1"]
[TimeControl "40/5400+30:1800+30"]

{[%evp 12,115,18,8,41,14,7,0,0,0,14,0,8,0,0,0,0,0,0,0,18,13,59,52,63,0,0,0,26,21,40,0,0,-7,0,0,0,0,0,0,0,-92,-76,-58,-20,-52,0,0,0,0,0,0,0,0,0,0,30,0,103,66,127,0,0,-228,0,0,132,122,141,119,150,142,276,281,277,0,0,0,0,0,0,0,368,0,491,457,437,341,454,456,461,461,461,461,448,427,403,393,29991,445,435,162,226,252,29982,29983]} 1. e4 {[%emt 0:00:03]} c5 {[%emt 0:00:07]} 2. Nf3 {[%emt 0:00:06]} d6 {[%emt 0:00:05]} 3. d4 {[%emt 0:00:03]} cxd4 {[%emt 0:00:06]} 4. Nxd4 {[%emt 0:00:07]} Nf6 {[%emt 0:00:07]} 5. Nc3 {[%emt 0:00:05]} a6 {[%emt 0:00:05]} 6. h3 {[%emt 0:00:03]} e5 {[%emt 0:00:06]} 7. Nde2 {[%emt 0:00:08]} h5 {[%emt 0:00:07]} 8. Bg5 {[%emt 0:00:06]} Be6 {[%emt 0:00:05]} 9. Bxf6 {[%emt 0:00:15]} Qxf6 {[%emt 0:00:07] The position is equal.} 10. Nd5 {[%emt 0:00:05]} Qd8 {[%emt 0:00:08]} 11. Qd3 {[%emt 0:00:45]} g6 {[%emt 0:00:11]} 12. O-O-O {[%emt 0:00:24]} Nd7 {[%emt 0:00:12]} 13. Kb1 {[%emt 0:03:12]} Nc5 {[%emt 0:00:10]} 14. Qa3 {[%emt 0:00:05]} Bh6 {[%emt 0:06:31][%cal Ob7b5]} 15. h4 {[%emt 0:00:43]} b5 {[%emt 0:08:26]} (15... Nxe4 $2 16. Qa4+ b5 17. Qxe4 $18) 16. Nec3 {[%emt 0:01:00]} O-O {[%emt 0:11:34]} (16... Kf8 $11 {is superior.}) 17. f3 $1 $14 {[%emt 0:00:09]} f5 {[%emt 0:09:56]} 18. Be2 {[%emt 0:00:19]} (18. exf5 $1 $14 gxf5 (18... Bxf5 19. Be2 $16) (18... Rxf5 19. Bd3 $14) 19. Be2) 18... f4 $1 $11 {[%emt 0:00:24]} 19. b4 {[%emt 0:06:11]} Nb7 {[%emt 0:02:50]} 20. Qb2 {[%emt 0:01:43]} Rf7 {[%emt 0:06:22]} 21. a3 {[%emt 0:03:30]} Kh7 {[%emt 0:06:11]} 22. Rd2 {[%emt 0:05:15]} Qb8 {[%emt 0:03:44]} 23. Rhd1 {[%emt 0:09:05]} Nd8 {[%emt 0:07:30]} 24. a4 {[%emt 0:04:25]} bxa4 {[%emt 0:02:10]} 25. Nxa4 {[%emt 0:00:23] Ndb6 is the strong threat. Excellent horsemanship.} Bf8 {[%emt 0:07:40]} 26. Rd3 {[%emt 0:11:08]} (26. Bc4 $11 {remains equal.}) 26... Rb7 {[%emt 0:03:40] ...Nc6 would now be deadly.} 27. Rb3 {[%emt 0:00:23]} Nc6 {[%emt 0:04:33]} 28. c3 {[%emt 0:02:37] Dodges Nd4} Ne7 {[%emt 0:04:26]} (28... Kg7 $15) 29. Bc4 $1 {[%emt 0:02:35]} Nxd5 {[%emt 0:00:08]} 30. Bxd5 {[%emt 0:00:36]} Bxd5 {[%emt 0:00:07]} 31. Rxd5 {[%emt 0:01:57]} Be7 {[%emt 0:07:59]} 32. Qd2 {[%emt 0:12:07]} Qe8 {[%emt 0:03:07]} 33. Nb2 {[%emt 0:00:14]} Qc6 {[%emt 0:03:20][%cal Ob7c7]} 34. Qd3 {[%emt 0:01:49]} Rb5 {[%emt 0:01:31]} (34... Rc7 $11) 35. Ra3 $1 $16 {[%emt 0:05:52]} Rab8 {[%emt 0:02:24]} ({Better is} 35... Rxd5 $14 36. Qxd5 (36. exd5 Qb6 $11) 36... Qxd5 37. exd5 Bxh4) 36. Nc4 {[%emt 0:01:36]} (36. Qc4 $16 Qb7 37. Rxb5 axb5 38. Qa2) 36... Rc8 $11 {[%emt 0:01:20] Hoping for ...Rxd5.} 37. Nd2 $2 {[%emt 0:01:57] [#]} (37. Rxb5 $11 Qxb5 38. Nb2) 37... Kh6 $2 {[%emt 0:00:38]} (37... Bxh4 $2 38. Rxd6 $18) (37... Rxb4+ $1 $19 38. Kc1 (38. cxb4 $2 Qc1+ 39. Ka2 Rc2+ 40. Kb3 Rb2+ 41. Ka4 Qc6+ 42. b5 axb5+ 43. Rxb5 d5 $19) 38... Qb6 (38... Bxh4 39. Rxd6 Qe8 40. Raxa6 $11) 39. Rxa6 Qf2) 38. Kb2 {[%emt 0:01:30]} Qb6 {[%emt 0:00:47] [#]} (38... Rxb4+ $11 39. cxb4 Qc1+ 40. Kb3 (40. Ka2 $2 Rc2+ $19) 40... Qd1+ 41. Kb2 Qc1+ 42. Kb3 (42. Ka2 $2 Rc2+ $19) 42... Qd1+ 43. Kb2 Qc1+) 39. Rxa6 $3 $16 {[%emt 0:01:02][%mdl 512]} Qxa6 {[%emt 0:00:33]} 40. Qxb5 {[%emt 0:00:34]} Qa7 {[%emt 0:00:32][%cal Oc8a8]} 41. Nc4 {[%emt 0:37:14]} Bxh4 {[%emt 0:10:35]} (41... Qf2+ $16 42. Rd2 Qe1) 42. Rxd6 $18 {[%emt 0:00:00][%cal Oc4b6] Threatens to win with Nb6!} (42. Nxd6 Ra8 43. Nf5+ (43. Rxe5 $2 Qf2+ 44. Kb1 Bf6 $19) 43... Kg5 (43... gxf5 44. Rd6+ Kg5 45. Qxe5 $15) 44. Rxe5 Qf2+ (44... gxf5 45. Rxf5+ Kg6 46. Qc6+ Kg7 47. Ra5 $11) 45. Kb1 Qg1+ (45... gxf5 46. Rxf5+ Kg6 47. Qc6+ Kg7 48. Qc7+ Kh6 49. Qd6+ Kg7 50. Qe5+ Kg6 51. Qe6+) 46. Kc2 Qxg2+ (46... gxf5 47. Rxf5+ Kg6 48. Qc6+ Kg7 49. Qd7+ Kh8 50. Rxh5+ Kg8 51. Qg4+) 47. Kb1 Qa2+ (47... gxf5 $2 48. Rxf5+ Kg6 49. Qc6+ Kg7 50. Qb7+ Kh6 51. Qxa8 $18) 48. Kc1 Qa1+ (48... gxf5 49. Rxf5+ Kg6 50. Qc6+ Kg7 51. Qc7+ Kg8 52. Qc6 $11) 49. Kc2 Ra2+ (49... gxf5 50. Rxf5+ Kg6 51. Qc6+ Kg7 52. Qc7+ Kh6 53. Qd6+ Kg7 54. Qe5+ Kg8 55. Qe6+ Kh8 56. Qh6+ Kg8 57. Qg6+ Kh8 58. Rxh5#) 50. Kb3 Ra3+ (50... gxf5 51. Rxf5+ Kh6 52. Qc6+ Kg7 53. Qd7+ Kh6 54. Qe6+) 51. Kc4 Qf1+ (51... gxf5 52. Rxf5+ Kh6 53. Qc6+ Kg7 54. Qd7+ Kh6 55. Qe6+) (51... Rxc3+ 52. Kd5 $11) 52. Kd4 Qxb5 (52... Qxf3 53. Ne3+ Kh6 54. Nf5+ Kg5 55. Ne3+ Kh6 56. Nf5+ Kg5 $11) 53. Rxb5 Bf2+ (53... gxf5 $2 54. Rxf5+ Kg6 55. Rxf4 $19) 54. Kd3 gxf5 55. Rxf5+ Kg6 $19 (55... Kh4 56. e5 $17)) 42... Be1 {[%emt 0:06:53]} 43. Rc6 $2 {[%emt 0:00:00]} (43. Nxe5 Rxc3 44. Nc4 (44. Nxg6 $2 Qa3+ 45. Kb1 Rc1#) (44. Rxg6+ $2 Kh7 $19) 44... Qf2+ $11) ({White should try} 43. Kb3 $18 Qa1 44. Qxe5 (44. Rd3 Ra8 $17) 44... Qb1+ 45. Ka3 Ra8+ 46. Na5 Qc1+ 47. Kb3 Qb1+ 48. Kc4 Qa2+ 49. Kb5 Qxg2 50. Rd5 (50. Qxf4+ Qg5+ 51. Qxg5+ Kxg5 $16)) 43... Ra8 $1 $11 {[%emt 0:05:10]} 44. Na5 $1 {[%emt 0:00:00] Active counter play!} (44. Qxe5 $2 Qa1+ 45. Kc2 Qa4+ (45... Ra2+ 46. Kb3 $15) 46. Kb2 Qxc6 $19) (44. Nxe5 $2 Qa2+ 45. Kc1 Bd2+ (45... Qd2+ $2 46. Kb1 $19) 46. Kd1 Qb1+ 47. Ke2 Qe1+ 48. Kd3 Qf1+ 49. Kc2 Qxb5 $19) 44... Qf2+ {[%emt 0:02:47]} 45. Kb3 {[%emt 0:00:00]} Qxg2 {[%emt 0:00:51]} 46. Qb7 $36 {[%emt 0:00:00][%mdl 2048] White fights for an advantage. Dancing on a razor blade.} Rh8 {[%emt 0:01:03][%mdl 8192]} (46... Rg8 $11 {and Black is okay.}) 47. Qf7 $2 {[%emt 0:00:00]} (47. Nc4 $18 Bxc3 48. Nd6 Qb2+ 49. Kc4) 47... Rh7 $2 {[%emt 0:01:39][%mdl 8192]} (47... Rb8 $11 {and Black has nothing to worry.}) 48. Qf8+ $18 {[%emt 0:00:00]} Kg5 {[%emt 0:00:09][%cal Og5h4]} 49. Qf6+ {[%emt 0:04:13]} Kh6 {[%emt 0:00:01]} 50. Nc4 {[%emt 0:01:26]} (50. Qxe5 Qxf3 51. b5 Bh4 $11) 50... Bxc3 {[%emt 0:04:08]} 51. Qf8+ {[%emt 0:01:58]} (51. Kxc3 Qxf3+ 52. Kd2 Qf2+ 53. Kd1 (53. Kc3 Qd4+ 54. Kb3 Qd1+ 55. Ka3 Qa1+ 56. Kb3 Qd1+ 57. Kb2 Qd4+ 58. Kc2 Qxe4+ 59. Kc3 Qd4+ 60. Kb3 Qd1+ 61. Kb2 Qe2+ 62. Kc3 Qf3+ 63. Kc2 Qe4+ 64. Kb3 Rb7 $11) 53... Qf3+ 54. Kc2 Qxe4+ 55. Kb3 Qd3+ 56. Ka4 f3 $11) 51... Kg5 {[%emt 0:00:25] [#]} 52. Qd8+ {[%emt 0:00:05]} ({Worse is} 52. Kxc3 Qxf3+ 53. Kb2 Qe2+ 54. Kc1 Qe1+ 55. Kb2 Qe2+ 56. Kc3 Qf3+ 57. Kb2 Qe2+ $11) 52... Kh6 {[%emt 0:00:03]} 53. Kxc3 {[%emt 0:00:06]} Qxf3+ {[%emt 0:00:07]} 54. Qd3 {[%emt 0:01:11]} Qh1 {[%emt 0:00:12]} (54... Qxd3+ $18 55. Kxd3 Rd7+ 56. Ke2 Rd4) 55. Kb3 {[%emt 0:01:38]} (55. Nxe5 $2 {is the wrong capture.} Qa1+ 56. Kc2 Qxe5 $19) (55. Rxg6+ $142 Kxg6 56. Nxe5+ Kg7 57. Qd7+ Kh6 58. Qd6+ Kg5 59. Qd8+ Re7 60. Qxe7+ Kh6 61. Qf6+ Kh7 62. Qg6+ Kh8 63. Nf7#) 55... Ra7 {[%emt 0:00:42]} 56. Nb2 $2 {[%emt 0:04:27]} (56. Nxe5 Rg7 57. Nf3) 56... Qg2 {[%emt 0:01:05]} (56... Ra1 {keeps fighting.}) 57. b5 {[%emt 0:01:31] aiming for b6.} f3 $2 {[%emt 0:00:55]} (57... Qg3 $18 58. Rc3 Qe1) 58. Qe3+ {[%emt 0:00:27] Weighted Error Value: White=0.53/Black=0.66.  Loses game:     	White=1     	Black=2      Missed win:     	White=2     	Black=1      Mistake:       	White=4     	Black=9      Inaccurate:     	White=4     	Black=4      OK:         	White=18    	Black=15     Best:        	White=5     	Black=5      Strong:       	White=4     	Black=2      Brilliant:      	White=1     	---} 1-0

[Event "ECo-C Extraliga 2023-24"]
[Site "Slovakia"]
[Date "2024.02.25"]
[Round "8.4"]
[White "Stohl, Igor"]
[Black "Briestensky, Rastislav"]
[Result "1/2-1/2"]
[ECO "E32"]
[WhiteElo "2424"]
[BlackElo "2290"]
[Annotator "ChessBase"]
[PlyCount "66"]
[EventDate "2023.10.06"]
[EventType "team-tourn"]
[EventCountry "SVK"]
[SourceTitle "playchess.com"]
[Source "ChessBase"]
[SourceQuality "1"]
[TimeControl "40/5400+30:1800+30"]

1. d4 {[%emt 0:00:04]} Nf6 {[%emt 0:00:43]} 2. c4 {[%emt 0:00:15]} e6 {[%emt 0:00:23]} 3. Nc3 {[%emt 0:00:18]} Bb4 {[%emt 0:00:29]} 4. Qc2 {[%emt 0:00:36]} O-O {[%emt 0:01:08]} 5. a3 {[%emt 0:00:58]} Bxc3+ {[%emt 0:00:05]} 6. Qxc3 {[%emt 0:00:05]} d6 {[%emt 0:02:09]} 7. Bg5 {[%emt 0:03:11]} Qe7 {[%emt 0:00:39]} 8. e3 {[%emt 0:04:30]} e5 {[%emt 0:05:48]} 9. Bd3 {[%emt 0:05:54]} h6 {[%emt 0:02:11]} 10. Bh4 {[%emt 0:01:59]} a5 {[%emt 0:01:00]} 11. Ne2 {[%emt 0:03:55]} Re8 {[%emt 0:02:10]} 12. O-O {[%emt 0:05:03]} Nbd7 {[%emt 0:21:42]} 13. b4 {[%emt 0:24:28]} axb4 {[%emt 0:01:16]} 14. axb4 {[%emt 0:00:09]} Rxa1 {[%emt 0:00:05]} 15. Qxa1 {[%emt 0:00:45]} c6 {[%emt 0:08:06]} 16. Nc3 {[%emt 0:02:34]} g5 {[%emt 0:07:26]} 17. Bg3 {[%emt 0:00:24]} exd4 {[%emt 0:01:20]} 18. exd4 {[%emt 0:00:12]} Nh5 {[%emt 0:00:03]} 19. b5 {[%emt 0:02:12]} Nxg3 {[%emt 0:00:18]} 20. hxg3 {[%emt 0:00:03]} Nf6 {[%emt 0:01:38]} 21. Qa7 {[%emt 0:02:31]} Kg7 {[%emt 0:06:00]} 22. Rb1 {[%emt 0:07:33]} Ng4 {[%emt 0:06:02]} 23. Rf1 {[%emt 0:07:40]} Nf6 {[%emt 0:01:52]} 24. Qb6 {[%emt 0:04:27]} Qd8 {[%emt 0:00:46]} 25. Qxd8 {[%emt 0:02:49]} Rxd8 {[%emt 0:00:05]} 26. Ra1 {[%emt 0:00:27]} Re8 {[%emt 0:02:19]} 27. Kf1 {[%emt 0:01:49]} Bd7 {[%emt 0:08:23]} 28. Ra7 {[%emt 0:11:59]} Rb8 {[%emt 0:04:58]} 29. Ke2 {[%emt 0:04:46]} cxb5 {[%emt 0:01:02]} 30. cxb5 {[%emt 0:00:03]} Kf8 {[%emt 0:01:38]} 31. Kd2 {[%emt 0:00:39]} Ke7 {[%emt 0:00:56]} 32. Nd1 {[%emt 0:01:46]} d5 {[%emt 0:00:30]} 33. Ne3 {[%emt 0:01:24]} Kd6 {[%emt 0:00:31]} 1/2-1/2

[Event "ECo-C Extraliga 2023-24"]
[Site "Slovakia"]
[Date "2024.02.25"]
[Round "8.4"]
[White "Mikrut, Dariusz"]
[Black "Lecky, Juraj"]
[Result "1-0"]
[ECO "D30"]
[WhiteElo "2317"]
[BlackElo "2121"]
[Annotator "TA"]
[PlyCount "96"]
[EventDate "2023.10.06"]
[EventType "team-tourn"]
[EventCountry "SVK"]
[SourceTitle "playchess.com"]
[Source "ChessBase"]
[SourceQuality "1"]
[TimeControl "40/5400+30:1800+30"]

{[%evp 25,96,-61,1,-163,-50,-31,-40,-152,-140,-347,-348,-337,-234,-222,-211,-227,-217,-232,-144,-137,-109,-153,-151,-161,-113,-133,-79,-94,-95,-225,-200,-210,-206,-214,-208,-356,0,0,0,0,0,-249,-248,-705,-237,-475,0,0,29,26,358,323,302,225,407,400,559,519,950,945,862,972,958,904,1341,115,115,0,1845,1766,29972,4134,29981]} 1. d4 {[%emt 0:00:02]} Nf6 {[%emt 0:00:03]} 2. c4 {[%emt 0:00:07]} e6 {[%emt 0:00:03]} 3. Nf3 {[%emt 0:00:06]} d5 {[%emt 0:00:04]} 4. Bg5 {[%emt 0:00:09]} dxc4 {[%emt 0:00:23]} 5. Nc3 {[%emt 0:00:16]} a6 {[%emt 0:00:45]} 6. e4 {[%emt 0:01:42]} b5 {[%emt 0:09:16]} 7. e5 {[%emt 0:01:11]} h6 {[%emt 0:00:10]} 8. Bh4 {[%emt 0:00:11]} g5 {[%emt 0:00:11]} 9. Nxg5 {[%emt 0:01:45]} hxg5 {[%emt 0:01:44]} 10. Bxg5 {[%emt 0:00:12]} Nbd7 {[%emt 0:00:27]} 11. Qf3 {[%emt 0:07:10]} Rb8 {[%emt 0:04:03]} 12. exf6 {[%emt 0:01:40]} Bb7 {[%emt 0:06:05]} 13. Qe2 {[%emt 0:09:48]} Nb6 {[%emt 0:09:24]} (13... Bh6 $15 14. f4 Nxf6) 14. O-O-O $2 {[%emt 0:03:55]} (14. Rd1 $11 {and White is okay.}) 14... Nd5 {[%emt 0:12:05]} (14... b4 $1 $19 {[%cal Rb4c3]} 15. Nb1 Qd5) 15. Ne4 $15 {[%emt 0:01:55]} Nb4 {[%emt 0:15:29]} 16. Nc5 {[%emt 0:01:13]} (16. Kb1 $15) 16... Qd5 {[%emt 0:07:25]} 17. Qd2 $2 {[%emt 0:19:10]} (17. h4 $17 Qf5 (17... Nxa2+ 18. Kb1 $11) (17... Bxc5 18. dxc5 Nd3+ 19. Rxd3 $15) 18. Rh3) 17... Nxa2+ $19 {[%emt 0:13:21]} 18. Kb1 {[%emt 0:00:19]} c3 {[%emt 0:02:20]} 19. bxc3 {[%emt 0:00:56]} Bxc5 {[%emt 0:00:15]} 20. Qxa2 {[%emt 0:01:30]} Qxg5 {[%emt 0:00:56]} 21. dxc5 {[%emt 0:00:05]} Qxc5 {[%emt 0:01:34]} (21... Bxg2 22. Bxg2 Qxg2 23. Qd2 Qg6+ (23... Rxh2 24. Qd7+ Kf8 25. Qd8+ Rxd8 26. Rxd8#) 24. Kb2 Qxf6 25. Qd7+ Kf8 26. Qxc7 $11) 22. Qd2 {[%emt 0:00:04]} Bd5 {[%emt 0:00:14]} 23. Kb2 {[%emt 0:00:08]} a5 {[%emt 0:08:32]} 24. h4 {[%emt 0:00:16]} a4 {[%emt 0:00:23]} 25. Qd4 {[%emt 0:01:25]} Qxd4 {[%emt 0:01:44]} (25... a3+ $2 26. Ka1 Qxd4 27. Rxd4) ({Better is} 25... Qd6 {And now ...c5 would win.} 26. Qe3 Rh5) 26. Rxd4 $17 {[%emt 0:00:06]} c5 {[%emt 0:00:11]} 27. Rd2 {[%emt 0:00:05]} (27. Rg4 $17) 27... b4 $19 {[%emt 0:01:00]} 28. c4 {[%emt 0:00:07]} Bc6 {[%emt 0:01:29]} 29. Rd6 {[%emt 0:00:11]} a3+ {[%emt 0:01:10]} 30. Kb3 {[%emt 0:00:04] [#]} (30. Ka2 {keeps fighting.} Ba4 31. Rd2) 30... Ba4+ $2 {[%emt 0:00:38]} (30... Rb6 $1 $19 {[%mdl 512]} 31. Rd3 (31. Rd2 O-O) 31... e5) 31. Kxa4 $11 {[%emt 0:00:07]} a2 {[%emt 0:00:23]} 32. Bd3 {[%emt 0:01:11]} Ra8+ {[%emt 0:02:10]} 33. Kb5 $2 {[%emt 0:00:37]} (33. Kb3 $1 $11 {and White stays safe.} a1=Q (33... a1=B 34. Rxa1 Rxa1 35. Be4 $11) 34. Rxa1 Rxa1 35. Be4) 33... b3 $19 {[%emt 0:00:48]} (33... a1=B 34. Be4 (34. Kxc5 Bxf6 35. Be4 Rb8 $17) 34... Rb8+ 35. Rb6 (35. Kxc5 Bxf6 36. Ra6 O-O $19) 35... Rxb6+ 36. Kxb6 $15) (33... a1=Q 34. Rxa1 Rxa1 35. Be4 $11) 34. Be4 $2 {[%emt 0:00:50]} (34. Ra1 b2 (34... Rxh4 35. Be4 $11) 35. Rxa2 Rxa2 36. Kxc5) 34... Rb8+ $2 {[%emt 0:00:24]} (34... a1=R $2 35. Rxa1 (35. Bc6+ Kf8 $18) 35... Rb8+ 36. Rb6 $18 (36. Kxc5 Rh6 $18)) (34... b2 {aiming for ...Rb8+.} 35. Kb6 O-O (35... a1=R 36. Bc6+ Kf8 37. Bxa8 $14) (35... b1=R+ 36. Rxb1 axb1=R+ 37. Bxb1 $17) (35... b1=N 36. Bc6+ Kf8 37. Bxa8 Kg8 38. Be4 a1=Q 39. Rd8#) (35... Rb8+ $2 36. Kc7 $19)) 35. Kxc5 $2 {[%emt 0:00:30] [#]} (35. Kc6 b2 36. Rdd1) 35... b2 $2 {[%emt 0:01:41]} (35... Rh5+ $1 $19 36. Kc6 b2) 36. Ra6 $1 $11 {[%emt 0:01:21]} a1=Q {[%emt 0:00:15]} 37. Bc6+ {[%emt 0:00:16]} Kd8 $2 {[%emt 0:01:00][%mdl 8192]} (37... Kf8 $1 $11 38. Rhxa1 (38. Raxa1 bxa1=N 39. Rxa1 Rh6 $11) 38... bxa1=N 39. Rxa1 Rh6) 38. Rhxa1 {[%emt 0:00:14]} bxa1=Q {[%emt 0:00:30]} 39. Rxa1 {[%emt 0:00:09]} Rh5+ $2 {[%emt 0:00:08]} (39... Rh6 40. Rd1+ Kc8) 40. Kd6 $18 {[%emt 0:00:33]} Rxh4 {[%emt 0:00:37]} 41. Ra7 {[%emt 0:31:03]} Rd4+ {[%emt 0:14:17]} (41... Rxc4 $142 42. Rxf7 Rd4+ 43. Ke5 (43. Kxe6 Rb6 $18) 43... Rbb4) 42. Kc5 $18 {[%emt 0:00:00]} Rf4 {[%emt 0:00:14]} 43. Rxf7 {[%emt 0:00:00]} Rb2 {[%emt 0:00:14]} 44. g3 {[%emt 0:00:00]} Rfxf2 {[%emt 0:03:12]} 45. Kd6 $2 {[%emt 0:00:00]} (45. g4 $18 {and White stays clearly on top.} Rf1 46. Bb5 (46. Kd6 Rd2+ 47. Bd5 Ke8 $18)) 45... Rfd2+ $16 {[%emt 0:00:42]} 46. Kc5 $2 {[%emt 0:00:00][%mdl 8192]} ({Worse is} 46. Kxe6 Rb6 47. Rf8+ Kc7 48. Rf7+ Kxc6 $17) (46. Ke5 $16 Rb1 47. Rf8+ (47. Kxe6 Rb6 $17) 47... Kc7 48. Be4) 46... Rf2 $1 $18 {[%emt 0:06:12]} 47. g4 {[%emt 0:00:00]} Rbd2 {[%emt 0:00:57]} 48. Kb6 {[%emt 0:00:00]} (48. g5 $142 Rf5+ 49. Kb6 Rb2+ 50. Bb5 Rfxb5+ 51. cxb5 Rg2 52. Rf8+ Kd7 53. Rb8) 48... Kc8 {[%emt 0:03:25]} 1-0

[Event "ECo-C Extraliga 2023-24"]
[Site "Slovakia"]
[Date "2024.02.25"]
[Round "8.4"]
[White "Krak, Tomas"]
[Black "Hujbert, Florian"]
[Result "0-1"]
[ECO "D02"]
[WhiteElo "2264"]
[BlackElo "2406"]
[Annotator "TA"]
[PlyCount "66"]
[EventDate "2023.10.06"]
[EventType "team-tourn"]
[EventCountry "SVK"]
[SourceTitle "playchess.com"]
[Source "ChessBase"]
[SourceQuality "1"]
[TimeControl "40/5400+30:1800+30"]

{[%evp 21,66,-27,-14,-24,-31,-35,-26,-20,-19,-27,-3,-31,-46,-39,-15,-44,-37,-38,-15,-34,-34,-43,-28,-45,-46,-58,-50,-38,-49,-50,-46,-51,-53,-46,-43,-45,-51,-46,-51,-95,-102,-100,-46,-142,-141,-206,-107]} 1. Nf3 {[%emt 0:00:03]} d5 {[%emt 0:02:47]} 2. d4 {[%emt 0:00:09]} Nf6 {[%emt 0:00:18]} 3. c4 {[%emt 0:00:09]} e6 {[%emt 0:00:21]} 4. e3 {[%emt 0:00:16]} a6 {[%emt 0:05:15]} 5. Nc3 {[%emt 0:06:39]} dxc4 {[%emt 0:01:29]} 6. Bxc4 {[%emt 0:04:48][%cal Bf1c4,Bc4b3,Bb3c2][%mdl 32]} b5 {[%emt 0:00:11]} 7. Bb3 {[%emt 0:00:06]} Bb7 {[%emt 0:00:54]} 8. O-O {[%emt 0:00:21]} Nbd7 {[%emt 0:04:49]} 9. Qe2 {[%emt 0:11:31]} Be7 {[%emt 0:16:28][%cal Bf8e7,Be7d6,Bd6f4][%mdl 32]} 10. Rd1 {[%emt 0:03:29]} O-O {[%emt 0:03:12]} 11. Bc2 {[%emt 0:13:24]} c5 {[%emt 0:10:41]} 12. e4 {[%emt 0:06:34]} cxd4 {[%emt 0:03:10]} 13. Nxd4 {[%emt 0:00:34]} Qb8 {[%emt 0:03:58]} 14. Bg5 {[%emt 0:03:51] Black has an edge.} Bd6 {[%emt 0:02:59]} 15. Nf3 {[%emt 0:08:06]} Bf4 {[%emt 0:04:37]} 16. Bh4 {[%emt 0:02:32]} Qc7 {[%emt 0:08:17]} 17. Bg3 {[%emt 0:06:52]} Rfd8 {[%emt 0:03:59]} 18. a3 {[%emt 0:16:06]} Bxg3 {[%emt 0:07:05]} 19. hxg3 {[%emt 0:00:10]} g6 {[%emt 0:01:17]} 20. Rd2 {[%emt 0:01:37]} Nb6 {[%emt 0:01:23]} 21. Rxd8+ {[%emt 0:02:38]} Rxd8 {[%emt 0:00:28]} 22. Bb3 {[%emt 0:00:27]} Qc5 {[%emt 0:04:38]} 23. Re1 {[%emt 0:01:59]} b4 {[%emt 0:02:14]} 24. axb4 {[%emt 0:02:12]} Qxb4 {[%emt 0:00:07]} 25. Ba2 {[%emt 0:00:32]} Na4 {[%emt 0:02:15]} 26. Nxa4 {[%emt 0:00:56]} Qxa4 {[%emt 0:00:04]} 27. e5 {[%emt 0:04:07] [#] Strongly threatening b3.} Ng4 {[%emt 0:02:55]} 28. Qc4 {[%emt 0:00:24]} Qxc4 {[%emt 0:00:41]} 29. Bxc4 {[%emt 0:00:03]} Rc8 {[%emt 0:00:17]} 30. b3 {[%emt 0:00:23]} Rc5 {[%emt 0:00:43]} 31. Rd1 {[%emt 0:03:08]} a5 {[%emt 0:02:50]} (31... h6 $17 {[%cal Oa6a5]} 32. Be2 Rc3 (32... Nxe5 33. b4 $15)) 32. Rd8+ {[%emt 0:01:29]} ({White should try} 32. Ng5 $1 $15) 32... Kg7 $17 {[%emt 0:00:09]} 33. Ng5 {[%emt 0:00:48]} (33. Rd1 $17) 33... Rxe5 {[%emt 0:02:26] Weighted Error Value: White=0.16 (very precise) /Black=0.07 (flawless) .  Mistake:       	White=2     	Black=2      Inaccurate:     	White=3     	---        OK:         	White=5     	Black=9      Best:        	---       	Black=1} (33... Nxe5 $19 34. f4 Nxc4 35. bxc4 Rc7 (35... Rxc4 36. Rd7 $11)) 0-1